{"text_format":"2","workbook":"xlsx","n_sheets":1,"sheets":["Sheet1"],"not_rendered":{"charts":0,"images":0,"macros":0,"external_links":0,"defined_names":0,"comments":0,"pivot_tables":0},"unopened":[],"bounds":{"document_bytes":16777216,"sheet_cells":100000,"run_cost":"one","rows_first":2000,"rows_last":500,"rows_between":2000,"halvings":0,"cell_chars":16384,"cell_head_chars":4096},"cells_cut":0,"cells_raw":0,"read":"whole","date_system":"1900"}

{"sheet":"Sheet1","index":0,"n_rows":200,"n_cols":14,"rows_kept":200,"cut":false,"hidden":false,"merged":[]}
["Number","Multiindex","Mouse","Condition","Objective","Folder","Subfolder","Recording idx","Recording length","Starting frame","Analysis period","Quiet periods","Laser power, mW","Important comments"]
[0,"TS_C_ISO_8237",8237,"awake",16,"/media/andrey/My Passport/GIN/Anesthesia_CA1/Anesthesia/calcium_imaging_transition_state/non-concatenated/","20201027_GCaMP6f_8237_isoflurane/",2,7926,0,"0, 5000","0, 7500",25]
[1,"TS_C_ISO_8237",8237,"iso",16,"/media/andrey/My Passport/GIN/Anesthesia_CA1/Anesthesia/calcium_imaging_transition_state/non-concatenated/","20201027_GCaMP6f_8237_isoflurane/",3,9000,{"$f":"I2+J2","v":7926},"0, 5000","0, 9000",25]
[2,"TS_C_ISO_8237",8237,"rec30",16,"/media/andrey/My Passport/GIN/Anesthesia_CA1/Anesthesia/calcium_imaging_transition_state/non-concatenated/","20201027_GCaMP6f_8237_isoflurane/",4,6952,{"$f":"I3+J3","v":16926},"0, 5000","0, 6500",25]
[3,"TS_C_ISO_8237",8237,"rec60",16,"/media/andrey/My Passport/GIN/Anesthesia_CA1/Anesthesia/calcium_imaging_transition_state/non-concatenated/","20201027_GCaMP6f_8237_isoflurane/",5,5498,{"$f":"I4+J4","v":23878},"0, 5000","0, 5000",25]
[4,"TS_C_ISO_8237",8237,"rec120",16,"/media/andrey/My Passport/GIN/Anesthesia_CA1/Anesthesia/calcium_imaging_transition_state/non-concatenated/","20201027_GCaMP6f_8237_isoflurane/",6,11478,{"$f":"I5+J5","v":29376},"3000, 8000","3000, 11000",25]
[5,"TS_C_ISO_8237",8237,"rec180",16,"/media/andrey/My Passport/GIN/Anesthesia_CA1/Anesthesia/calcium_imaging_transition_state/non-concatenated/","20201027_GCaMP6f_8237_isoflurane/",7,7520,{"$f":"I6+J6","v":40854},"0, 5000","0, 7000",25]
[6,"TS_C_ISO_8237",8237,"rec240",16,"/media/andrey/My Passport/GIN/Anesthesia_CA1/Anesthesia/calcium_imaging_transition_state/non-concatenated/","20201027_GCaMP6f_8237_isoflurane/",8,14770,{"$f":"I7+J7","v":48374},"0, 5000","0, 14770",25]
[7,"TS_C_ISO_8237",8237,"rec300",16,"/media/andrey/My Passport/GIN/Anesthesia_CA1/Anesthesia/calcium_imaging_transition_state/non-concatenated/","20201027_GCaMP6f_8237_isoflurane/",9,8693,{"$f":"I8+J8","v":63144},"0, 5000","0, 8000",25]
[8,"TS_C_ISO_8237",8237,"rec360",16,"/media/andrey/My Passport/GIN/Anesthesia_CA1/Anesthesia/calcium_imaging_transition_state/non-concatenated/","20201027_GCaMP6f_8237_isoflurane/",10,8743,{"$f":"I9+J9","v":71837},"0, 5000","0, 8000",25]
[9,"TS_C_KETA_8237",8237,"awake",16,"/media/andrey/My Passport/GIN/Anesthesia_CA1/Anesthesia/calcium_imaging_transition_state/non-concatenated/","20201112_GCaMP6f_8237_keta/",2,7279,0,"2000, 7000","2000, 7000",25,"Baseline “awake” condition  is  recorded the day  after other recordings"]
[10,"TS_C_KETA_8237",8237,"keta",16,"/media/andrey/My Passport/GIN/Anesthesia_CA1/Anesthesia/calcium_imaging_transition_state/non-concatenated/","20201112_GCaMP6f_8237_keta/",3,9000,{"$f":"I11+J11","v":7279},"0, 5000","0, 9000",25]
[11,"TS_C_KETA_8237",8237,"keta30",16,"/media/andrey/My Passport/GIN/Anesthesia_CA1/Anesthesia/calcium_imaging_transition_state/non-concatenated/","20201112_GCaMP6f_8237_keta/",4,10305,{"$f":"I12+J12","v":16279},"0, 5000","0, 10000",25]
[12,"TS_C_KETA_8237",8237,"keta60",16,"/media/andrey/My Passport/GIN/Anesthesia_CA1/Anesthesia/calcium_imaging_transition_state/non-concatenated/","20201112_GCaMP6f_8237_keta/",5,9030,{"$f":"I13+J13","v":26584},"0, 5000","0, 8000",25]
[13,"TS_C_KETA_8237",8237,"keta120",16,"/media/andrey/My Passport/GIN/Anesthesia_CA1/Anesthesia/calcium_imaging_transition_state/non-concatenated/","20201112_GCaMP6f_8237_keta/",6,18560,{"$f":"I14+J14","v":35614},"0, 5000","0, 18000",25]
[14,"TS_C_KETA_8237",8237,"keta180",16,"/media/andrey/My Passport/GIN/Anesthesia_CA1/Anesthesia/calcium_imaging_transition_state/non-concatenated/","20201112_GCaMP6f_8237_keta/",7,7586,{"$f":"I15+J15","v":54174},"1000, 6000","1000, 6500",25]
[15,"TS_C_KETA_8237",8237,"keta240",16,"/media/andrey/My Passport/GIN/Anesthesia_CA1/Anesthesia/calcium_imaging_transition_state/non-concatenated/","20201112_GCaMP6f_8237_keta/",8,10356,{"$f":"I16+J16","v":61760},"3000, 8000","3000, 10000",25]
[16,"TS_C_KETA_8237",8237,"keta300",16,"/media/andrey/My Passport/GIN/Anesthesia_CA1/Anesthesia/calcium_imaging_transition_state/non-concatenated/","20201112_GCaMP6f_8237_keta/",9,10766,{"$f":"I17+J17","v":72116},"1000, 6000","1000, 10000",25]
[17,"TS_C_KETA_8237",8237,"keta360",16,"/media/andrey/My Passport/GIN/Anesthesia_CA1/Anesthesia/calcium_imaging_transition_state/non-concatenated/","20201112_GCaMP6f_8237_keta/",10,8800,{"$f":"I18+J18","v":82882},"0, 5000","0, 8000",25]
[18,"TS_C_MMF_8237",8237,"awake",16,"/media/andrey/My Passport/GIN/Anesthesia_CA1/Anesthesia/calcium_imaging_transition_state/non-concatenated/","20201105_GCaMP6f_8237_MMF/",2,5694,0,"0, 5000","0,5000",25]
[19,"TS_C_MMF_8237",8237,"mmf",16,"/media/andrey/My Passport/GIN/Anesthesia_CA1/Anesthesia/calcium_imaging_transition_state/non-concatenated/","20201105_GCaMP6f_8237_MMF/",3,9000,{"$f":"I20+J20","v":5694},"0, 5000","0, 9000",25]
[20,"TS_C_MMF_8237",8237,"post30",16,"/media/andrey/My Passport/GIN/Anesthesia_CA1/Anesthesia/calcium_imaging_transition_state/non-concatenated/","20201105_GCaMP6f_8237_MMF/",4,7269,{"$f":"I21+J21","v":14694},"2100, 7100","2100, 7100",25]
[21,"TS_C_MMF_8237",8237,"post60",16,"/media/andrey/My Passport/GIN/Anesthesia_CA1/Anesthesia/calcium_imaging_transition_state/non-concatenated/","20201105_GCaMP6f_8237_MMF/",5,15035,{"$f":"I22+J22","v":21963},"4000, 9000","4000, 11000",25]
[22,"TS_C_MMF_8237",8237,"post120",16,"/media/andrey/My Passport/GIN/Anesthesia_CA1/Anesthesia/calcium_imaging_transition_state/non-concatenated/","20201105_GCaMP6f_8237_MMF/",6,16532,{"$f":"I23+J23","v":36998},"10500, 11000","10500, 16000",25]
[23,"TS_C_MMF_8237",8237,"post180",16,"/media/andrey/My Passport/GIN/Anesthesia_CA1/Anesthesia/calcium_imaging_transition_state/non-concatenated/","20201105_GCaMP6f_8237_MMF/",7,8118,{"$f":"I24+J24","v":53530},"0, 5000","0, 8000",25]
[24,"TS_C_MMF_8237",8237,"post240",16,"/media/andrey/My Passport/GIN/Anesthesia_CA1/Anesthesia/calcium_imaging_transition_state/non-concatenated/","20201105_GCaMP6f_8237_MMF/",8,9768,{"$f":"I25+J25","v":61648},"0, 5000","0, 8000",25]
[25,"TS_C_MMF_8237",8237,"post300",16,"/media/andrey/My Passport/GIN/Anesthesia_CA1/Anesthesia/calcium_imaging_transition_state/non-concatenated/","20201105_GCaMP6f_8237_MMF/",9,6845,{"$f":"I26+J26","v":71416},"0, 5000","0, 6000",25]
[26,"TS_C_MMF_8237",8237,"post360",16,"/media/andrey/My Passport/GIN/Anesthesia_CA1/Anesthesia/calcium_imaging_transition_state/non-concatenated/","20201105_GCaMP6f_8237_MMF/",10,6736,{"$f":"I27+J27","v":78261},"0, 5000","0, 6000",25]
[27,"TS_C_ISO_8235",8235,"awake",16,"/media/andrey/My Passport/GIN/Anesthesia_CA1/Anesthesia/calcium_imaging_transition_state/non-concatenated/","20201103_GCaMP6f_8235_iso/",2,8604,0,"1100, 6100","1100, 8600",25]
[28,"TS_C_ISO_8235",8235,"iso",16,"/media/andrey/My Passport/GIN/Anesthesia_CA1/Anesthesia/calcium_imaging_transition_state/non-concatenated/","20201103_GCaMP6f_8235_iso/",3,9000,{"$f":"I29+J29","v":8604},"0, 5000","0, 9000",25]
[29,"TS_C_ISO_8235",8235,"rec30",16,"/media/andrey/My Passport/GIN/Anesthesia_CA1/Anesthesia/calcium_imaging_transition_state/non-concatenated/","20201103_GCaMP6f_8235_iso/",4,8913,{"$f":"I30+J30","v":17604},"3200, 8200","3200, 8600",25]
[30,"TS_C_ISO_8235",8235,"rec60",16,"/media/andrey/My Passport/GIN/Anesthesia_CA1/Anesthesia/calcium_imaging_transition_state/non-concatenated/","20201103_GCaMP6f_8235_iso/",5,8924,{"$f":"I31+J31","v":26517},"0, 5000","0, 8800",25]
[31,"TS_C_ISO_8235",8235,"rec120",16,"/media/andrey/My Passport/GIN/Anesthesia_CA1/Anesthesia/calcium_imaging_transition_state/non-concatenated/","20201103_GCaMP6f_8235_iso/",6,9773,{"$f":"I32+J32","v":35441},"0, 5000","0, 9000",25]
[32,"TS_C_ISO_8235",8235,"rec180",16,"/media/andrey/My Passport/GIN/Anesthesia_CA1/Anesthesia/calcium_imaging_transition_state/non-concatenated/","20201103_GCaMP6f_8235_iso/",7,7623,{"$f":"I33+J33","v":45214},"0, 5000","0, 6500",25]
[33,"TS_C_ISO_8235",8235,"rec240",16,"/media/andrey/My Passport/GIN/Anesthesia_CA1/Anesthesia/calcium_imaging_transition_state/non-concatenated/","20201103_GCaMP6f_8235_iso/",8,8215,{"$f":"I34+J34","v":52837},"0, 5000","0, 8000",25]
[34,"TS_C_ISO_8235",8235,"rec300",16,"/media/andrey/My Passport/GIN/Anesthesia_CA1/Anesthesia/calcium_imaging_transition_state/non-concatenated/","20201103_GCaMP6f_8235_iso/",9,7075,{"$f":"I35+J35","v":61052},"0, 5000","0, 7000",25]
[35,"TS_C_ISO_8235",8235,"rec360",16,"/media/andrey/My Passport/GIN/Anesthesia_CA1/Anesthesia/calcium_imaging_transition_state/non-concatenated/","20201103_GCaMP6f_8235_iso/",10,5419,{"$f":"I36+J36","v":68127},"0, 5000","0, 5000",25]
[36,"TS_C_KETA_8235",8235,"awake",16,"/media/andrey/My Passport/GIN/Anesthesia_CA1/Anesthesia/calcium_imaging_transition_state/non-concatenated/","20201116_GCaMP6f_8235_keta/",2,5491,0,"0, 5000","0, 5000",25]
[37,"TS_C_KETA_8235",8235,"keta",16,"/media/andrey/My Passport/GIN/Anesthesia_CA1/Anesthesia/calcium_imaging_transition_state/non-concatenated/","20201116_GCaMP6f_8235_keta/",3,9000,{"$f":"I38+J38","v":5491},"0, 5000","0, 9000",25]
[38,"TS_C_KETA_8235",8235,"keta30",16,"/media/andrey/My Passport/GIN/Anesthesia_CA1/Anesthesia/calcium_imaging_transition_state/non-concatenated/","20201116_GCaMP6f_8235_keta/",4,9000,{"$f":"I39+J39","v":14491},"0, 5000","0, 9000",25]
[39,"TS_C_KETA_8235",8235,"keta60",16,"/media/andrey/My Passport/GIN/Anesthesia_CA1/Anesthesia/calcium_imaging_transition_state/non-concatenated/","20201116_GCaMP6f_8235_keta/",5,9101,{"$f":"I40+J40","v":23491},"0, 5000","0, 9000",25]
[40,"TS_C_KETA_8235",8235,"keta120",16,"/media/andrey/My Passport/GIN/Anesthesia_CA1/Anesthesia/calcium_imaging_transition_state/non-concatenated/","20201116_GCaMP6f_8235_keta/",6,8299,{"$f":"I41+J41","v":32592},"1000, 6000","1000, 8000",25]
[41,"TS_C_KETA_8235",8235,"keta180",16,"/media/andrey/My Passport/GIN/Anesthesia_CA1/Anesthesia/calcium_imaging_transition_state/non-concatenated/","20201116_GCaMP6f_8235_keta/",7,10260,{"$f":"I42+J42","v":40891},"1000, 6000","1000, 10000",25]
[42,"TS_C_KETA_8235",8235,"keta240",16,"/media/andrey/My Passport/GIN/Anesthesia_CA1/Anesthesia/calcium_imaging_transition_state/non-concatenated/","20201116_GCaMP6f_8235_keta/",8,9123,{"$f":"I43+J43","v":51151},"1000, 6000","0, 9000",25]
[43,"TS_C_KETA_8235",8235,"keta300",16,"/media/andrey/My Passport/GIN/Anesthesia_CA1/Anesthesia/calcium_imaging_transition_state/non-concatenated/","20201116_GCaMP6f_8235_keta/",9,7039,{"$f":"I44+J44","v":60274},"0, 5000","0, 5000",25]
[44,"TS_C_KETA_8235",8235,"keta360",16,"/media/andrey/My Passport/GIN/Anesthesia_CA1/Anesthesia/calcium_imaging_transition_state/non-concatenated/","20201116_GCaMP6f_8235_keta/",10,12578,{"$f":"I45+J45","v":67313},"3500, 8500","3500, 12500",25]
[45,"TS_C_MMF_8235",8235,"awake",16,"/media/andrey/My Passport/GIN/Anesthesia_CA1/Anesthesia/calcium_imaging_transition_state/non-concatenated/","20201111_GCaMP6f_8235_MMF/",2,6195,0,"0, 5000","0, 5000",25]
[46,"TS_C_MMF_8235",8235,"mmf",16,"/media/andrey/My Passport/GIN/Anesthesia_CA1/Anesthesia/calcium_imaging_transition_state/non-concatenated/","20201111_GCaMP6f_8235_MMF/",3,9000,{"$f":"I47+J47","v":6195},"0, 5000","0, 9000",25]
[47,"TS_C_MMF_8235",8235,"post30",16,"/media/andrey/My Passport/GIN/Anesthesia_CA1/Anesthesia/calcium_imaging_transition_state/non-concatenated/","20201111_GCaMP6f_8235_MMF/",4,9136,{"$f":"I48+J48","v":15195},"0, 5000","0, 9000",25]
[48,"TS_C_MMF_8235",8235,"post60",16,"/media/andrey/My Passport/GIN/Anesthesia_CA1/Anesthesia/calcium_imaging_transition_state/non-concatenated/","20201111_GCaMP6f_8235_MMF/",5,10523,{"$f":"I49+J49","v":24331},"3000, 8000","0, 10000",25]
[49,"TS_C_MMF_8235",8235,"post120",16,"/media/andrey/My Passport/GIN/Anesthesia_CA1/Anesthesia/calcium_imaging_transition_state/non-concatenated/","20201111_GCaMP6f_8235_MMF/",6,8854,{"$f":"I50+J50","v":34854},"0, 5000","0, 8000",25]
[50,"TS_C_MMF_8235",8235,"post180",16,"/media/andrey/My Passport/GIN/Anesthesia_CA1/Anesthesia/calcium_imaging_transition_state/non-concatenated/","20201111_GCaMP6f_8235_MMF/",7,5070,{"$f":"I51+J51","v":43708},"0, 5000","0, 5000",25]
[51,"TS_C_MMF_8235",8235,"post240",16,"/media/andrey/My Passport/GIN/Anesthesia_CA1/Anesthesia/calcium_imaging_transition_state/non-concatenated/","20201111_GCaMP6f_8235_MMF/",8,9760,{"$f":"I52+J52","v":48778},"3000, 8000","3000, 9000",25]
[52,"TS_C_MMF_8235",8235,"post300",16,"/media/andrey/My Passport/GIN/Anesthesia_CA1/Anesthesia/calcium_imaging_transition_state/non-concatenated/","20201111_GCaMP6f_8235_MMF/",9,6790,{"$f":"I53+J53","v":58538},"0, 5000","0, 6000",25]
[53,"TS_C_MMF_8235",8235,"post360",16,"/media/andrey/My Passport/GIN/Anesthesia_CA1/Anesthesia/calcium_imaging_transition_state/non-concatenated/","20201111_GCaMP6f_8235_MMF/",10,6724,{"$f":"I54+J54","v":65328},"0, 5000","0, 6000",25]
[54,"TS_C_ISO_8238",8238,"awake",16,"/media/andrey/My Passport/GIN/Anesthesia_CA1/Anesthesia/calcium_imaging_transition_state/non-concatenated/","20201102_GCaMP6f_8238_iso/",2,6160,0,"200, 5200","200, 5500",25,"The effect size is threshold-dependent (!)"]
[55,"TS_C_ISO_8238",8238,"iso",16,"/media/andrey/My Passport/GIN/Anesthesia_CA1/Anesthesia/calcium_imaging_transition_state/non-concatenated/","20201102_GCaMP6f_8238_iso/",3,9000,{"$f":"I56+J56","v":6160},"0, 5000","0, 9000",25]
[56,"TS_C_ISO_8238",8238,"rec30",16,"/media/andrey/My Passport/GIN/Anesthesia_CA1/Anesthesia/calcium_imaging_transition_state/non-concatenated/","20201102_GCaMP6f_8238_iso/",4,7064,{"$f":"I57+J57","v":15160},"0, 5000","0, 6500",25]
[57,"TS_C_ISO_8238",8238,"rec60",16,"/media/andrey/My Passport/GIN/Anesthesia_CA1/Anesthesia/calcium_imaging_transition_state/non-concatenated/","20201102_GCaMP6f_8238_iso/",5,13831,{"$f":"I58+J58","v":22224},"6500, 11500","6500, 13500",25]
[58,"TS_C_ISO_8238",8238,"rec120",16,"/media/andrey/My Passport/GIN/Anesthesia_CA1/Anesthesia/calcium_imaging_transition_state/non-concatenated/","20201102_GCaMP6f_8238_iso/",6,11481,{"$f":"I59+J59","v":36055},"2600, 7600","2600, 11000",25]
[59,"TS_C_ISO_8238",8238,"rec180",16,"/media/andrey/My Passport/GIN/Anesthesia_CA1/Anesthesia/calcium_imaging_transition_state/non-concatenated/","20201102_GCaMP6f_8238_iso/",7,16170,{"$f":"I60+J60","v":47536},"9000, 14000","9000, 15000",25]
[60,"TS_C_ISO_8238",8238,"rec240",16,"/media/andrey/My Passport/GIN/Anesthesia_CA1/Anesthesia/calcium_imaging_transition_state/non-concatenated/","20201102_GCaMP6f_8238_iso/",8,12094,{"$f":"I61+J61","v":63706},"5500, 10500","5500, 11500",25]
[61,"TS_C_ISO_8238",8238,"rec300",16,"/media/andrey/My Passport/GIN/Anesthesia_CA1/Anesthesia/calcium_imaging_transition_state/non-concatenated/","20201102_GCaMP6f_8238_iso/",9,18595,{"$f":"I62+J62","v":75800},"0, 5000","0, 5000",25]
[62,"TS_C_ISO_8238",8238,"rec360",16,"/media/andrey/My Passport/GIN/Anesthesia_CA1/Anesthesia/calcium_imaging_transition_state/non-concatenated/","20201102_GCaMP6f_8238_iso/",10,33970,{"$f":"I63+J63","v":94395},"0, 5000","0, 33970",25]
[63,"TS_C_KETA_8238",8238,"awake",16,"/media/andrey/My Passport/GIN/Anesthesia_CA1/Anesthesia/calcium_imaging_transition_state/non-concatenated/","20201115_GCaMP6f_8238_keta/",2,7311,0,"2500, 6500 ","2500, 6500",25]
[64,"TS_C_KETA_8238",8238,"keta",16,"/media/andrey/My Passport/GIN/Anesthesia_CA1/Anesthesia/calcium_imaging_transition_state/non-concatenated/","20201115_GCaMP6f_8238_keta/",3,9000,{"$f":"I65+J65","v":7311},"0, 5000","0, 9000",25]
[65,"TS_C_KETA_8238",8238,"keta30",16,"/media/andrey/My Passport/GIN/Anesthesia_CA1/Anesthesia/calcium_imaging_transition_state/non-concatenated/","20201115_GCaMP6f_8238_keta/",4,6917,{"$f":"I66+J66","v":16311},"0, 5000","0, 6000",25]
[66,"TS_C_KETA_8238",8238,"keta60",16,"/media/andrey/My Passport/GIN/Anesthesia_CA1/Anesthesia/calcium_imaging_transition_state/non-concatenated/","20201115_GCaMP6f_8238_keta/",5,5284,{"$f":"I67+J67","v":23228},"0, 5000","0, 5000",25]
[67,"TS_C_KETA_8238",8238,"keta120",16,"/media/andrey/My Passport/GIN/Anesthesia_CA1/Anesthesia/calcium_imaging_transition_state/non-concatenated/","20201115_GCaMP6f_8238_keta/",6,7563,{"$f":"I68+J68","v":28512},"0, 5000","0, 7000",25]
[68,"TS_C_KETA_8238",8238,"keta180",16,"/media/andrey/My Passport/GIN/Anesthesia_CA1/Anesthesia/calcium_imaging_transition_state/non-concatenated/","20201115_GCaMP6f_8238_keta/",7,9438,{"$f":"I69+J69","v":36075},"0, 5000","0, 9000",25]
[69,"TS_C_KETA_8238",8238,"keta240",16,"/media/andrey/My Passport/GIN/Anesthesia_CA1/Anesthesia/calcium_imaging_transition_state/non-concatenated/","20201115_GCaMP6f_8238_keta/",8,10403,{"$f":"I70+J70","v":45513},"0, 5000","0, 10000",25]
[70,"TS_C_KETA_8238",8238,"keta300",16,"/media/andrey/My Passport/GIN/Anesthesia_CA1/Anesthesia/calcium_imaging_transition_state/non-concatenated/","20201115_GCaMP6f_8238_keta/",9,7623,{"$f":"I71+J71","v":55916},"0, 5000","0, 7000",25]
[71,"TS_C_KETA_8238",8238,"keta360",16,"/media/andrey/My Passport/GIN/Anesthesia_CA1/Anesthesia/calcium_imaging_transition_state/non-concatenated/","20201115_GCaMP6f_8238_keta/",10,10629,{"$f":"I72+J72","v":63539},"4000, 9000","4000, 10000",25]
[72,"TS_C_MMF_8238",8238,"awake",16,"/media/andrey/My Passport/GIN/Anesthesia_CA1/Anesthesia/calcium_imaging_transition_state/non-concatenated/","20201110_GCaMP6f_8238_MMF/",2,10254,0,"1000, 6000","1000, 10000",25]
[73,"TS_C_MMF_8238",8238,"mmf",16,"/media/andrey/My Passport/GIN/Anesthesia_CA1/Anesthesia/calcium_imaging_transition_state/non-concatenated/","20201110_GCaMP6f_8238_MMF/",3,9000,{"$f":"I74+J74","v":10254},"0, 5000","0, 9000",25]
[74,"TS_C_MMF_8238",8238,"post30",16,"/media/andrey/My Passport/GIN/Anesthesia_CA1/Anesthesia/calcium_imaging_transition_state/non-concatenated/","20201110_GCaMP6f_8238_MMF/",4,7019,{"$f":"I75+J75","v":19254},"0, 5000","0, 7000",25]
[75,"TS_C_MMF_8238",8238,"post60",16,"/media/andrey/My Passport/GIN/Anesthesia_CA1/Anesthesia/calcium_imaging_transition_state/non-concatenated/","20201110_GCaMP6f_8238_MMF/",5,9124,{"$f":"I76+J76","v":26273},"0, 5000","0, 9000",25]
[76,"TS_C_MMF_8238",8238,"post120",16,"/media/andrey/My Passport/GIN/Anesthesia_CA1/Anesthesia/calcium_imaging_transition_state/non-concatenated/","20201110_GCaMP6f_8238_MMF/",6,6518,{"$f":"I77+J77","v":35397},"0, 5000","0, 5000",25]
[77,"TS_C_MMF_8238",8238,"post180",16,"/media/andrey/My Passport/GIN/Anesthesia_CA1/Anesthesia/calcium_imaging_transition_state/non-concatenated/","20201110_GCaMP6f_8238_MMF/",7,12873,{"$f":"I78+J78","v":41915},"4300, 9300","4300, 12400",25]
[78,"TS_C_MMF_8238",8238,"post240",16,"/media/andrey/My Passport/GIN/Anesthesia_CA1/Anesthesia/calcium_imaging_transition_state/non-concatenated/","20201110_GCaMP6f_8238_MMF/",8,9166,{"$f":"I79+J79","v":54788},"3300, 8300","3300, 8300",25]
[79,"TS_C_MMF_8238",8238,"post300",16,"/media/andrey/My Passport/GIN/Anesthesia_CA1/Anesthesia/calcium_imaging_transition_state/non-concatenated/","20201110_GCaMP6f_8238_MMF/",9,9146,{"$f":"I80+J80","v":63954},"1800, 6800","1800, 7800",25]
[80,"TS_C_MMF_8238",8238,"post360",16,"/media/andrey/My Passport/GIN/Anesthesia_CA1/Anesthesia/calcium_imaging_transition_state/non-concatenated/","20201110_GCaMP6f_8238_MMF/",10,7379,{"$f":"I81+J81","v":73100},"1000, 6000","1000, 6500",25]
[81,"TS_C_AWAKE_CTRL_8237",8237,"awake1",16,"/media/andrey/My Passport/GIN/Anesthesia_CA1/Anesthesia/calcium_imaging_transition_state/non-concatenated/","20201005_GCaMP6f_8237_awake_2/",2,12972,0,"0, 5000","0,10000",31,"Peak at  1-2 Hz band"]
[82,"TS_C_AWAKE_CTRL_8237",8237,"awake2",16,"/media/andrey/My Passport/GIN/Anesthesia_CA1/Anesthesia/calcium_imaging_transition_state/non-concatenated/","20201005_GCaMP6f_8237_awake_2/",3,18064,{"$f":"I83+J83","v":12972},"3000, 8000","3000, 17000",31]
[83,"TS_C_AWAKE_CTRL_8237",8237,"awake3",16,"/media/andrey/My Passport/GIN/Anesthesia_CA1/Anesthesia/calcium_imaging_transition_state/non-concatenated/","20201005_GCaMP6f_8237_awake_2/",4,17981,{"$f":"I84+J84","v":31036},600011000,"6000, 17000",31]
[84,"TS_C_AWAKE_CTRL_8237",8237,"awake4",16,"/media/andrey/My Passport/GIN/Anesthesia_CA1/Anesthesia/calcium_imaging_transition_state/non-concatenated/","20201005_GCaMP6f_8237_awake_2/",5,9587,{"$f":"I85+J85","v":49017},"0, 5000","0, 9000",31]
[85,"TS_C_AWAKE_CTRL_8237",8237,"awake5",16,"/media/andrey/My Passport/GIN/Anesthesia_CA1/Anesthesia/calcium_imaging_transition_state/non-concatenated/","20201005_GCaMP6f_8237_awake_2/",6,12828,{"$f":"I86+J86","v":58604},"0, 5000","0, 11000",31]
[86,"TS_C_AWAKE_CTRL_8237",8237,"awake6",16,"/media/andrey/My Passport/GIN/Anesthesia_CA1/Anesthesia/calcium_imaging_transition_state/non-concatenated/","20201005_GCaMP6f_8237_awake_2/",7,17575,{"$f":"I87+J87","v":71432},"0, 5000","0, 15000",31]
[87,"TS_C_AWAKE_CTRL_8237",8237,"awake7",16,"/media/andrey/My Passport/GIN/Anesthesia_CA1/Anesthesia/calcium_imaging_transition_state/non-concatenated/","20201005_GCaMP6f_8237_awake_2/",8,8486,{"$f":"I88+J88","v":89007},"0, 5000","0, 8000",31]
[88,"TS_C_AWAKE_CTRL_8238",8238,"awake1",16,"/media/andrey/My Passport/GIN/Anesthesia_CA1/Anesthesia/calcium_imaging_transition_state/non-concatenated/","20201028_GCaMP6f_8238_awake/",2,9212,0,"0, 5000","0, 4000",25]
[89,"TS_C_AWAKE_CTRL_8238",8238,"awake2",16,"/media/andrey/My Passport/GIN/Anesthesia_CA1/Anesthesia/calcium_imaging_transition_state/non-concatenated/","20201028_GCaMP6f_8238_awake/",3,12065,{"$f":"I90+J90","v":9212},"3000, 8000","0, 8000",25]
[90,"TS_C_AWAKE_CTRL_8238",8238,"awake3",16,"/media/andrey/My Passport/GIN/Anesthesia_CA1/Anesthesia/calcium_imaging_transition_state/non-concatenated/","20201028_GCaMP6f_8238_awake/",4,8252,{"$f":"I91+J91","v":21277},"0, 7500","0, 7500",25]
[91,"TS_C_AWAKE_CTRL_8238",8238,"awake4",16,"/media/andrey/My Passport/GIN/Anesthesia_CA1/Anesthesia/calcium_imaging_transition_state/non-concatenated/","20201028_GCaMP6f_8238_awake/",5,12151,{"$f":"I92+J92","v":29529},"4000, 9000","4000, 12000",25]
[92,"TS_C_AWAKE_CTRL_8238",8238,"awake5",16,"/media/andrey/My Passport/GIN/Anesthesia_CA1/Anesthesia/calcium_imaging_transition_state/non-concatenated/","20201028_GCaMP6f_8238_awake/",6,8944,{"$f":"I93+J93","v":41680},"0, 5000","0, 8000",25]
[93,"TS_C_AWAKE_CTRL_8238",8238,"awake6",16,"/media/andrey/My Passport/GIN/Anesthesia_CA1/Anesthesia/calcium_imaging_transition_state/non-concatenated/","20201028_GCaMP6f_8238_awake/",7,9844,{"$f":"I94+J94","v":50624},"2500, 7500","2500, 8500",25]
[94,"TS_C_AWAKE_CTRL_8238",8238,"awake7",16,"/media/andrey/My Passport/GIN/Anesthesia_CA1/Anesthesia/calcium_imaging_transition_state/non-concatenated/","20201028_GCaMP6f_8238_awake/",8,7525,{"$f":"I95+J95","v":60468},"0, 5000","0, 6500",25]
[95,"TS_C_AWAKE_CTRL_8235",8235,"awake1",16,"/media/andrey/My Passport/GIN/Anesthesia_CA1/Anesthesia/calcium_imaging_transition_state/non-concatenated/","20201029_GCaMP6f_8235_awake/",2,11079,0,"0, 5000","0, 11000",25]
[96,"TS_C_AWAKE_CTRL_8235",8235,"awake2",16,"/media/andrey/My Passport/GIN/Anesthesia_CA1/Anesthesia/calcium_imaging_transition_state/non-concatenated/","20201029_GCaMP6f_8235_awake/",3,12239,{"$f":"I97+J97","v":11079},"0, 5000","0, 12000",25]
[97,"TS_C_AWAKE_CTRL_8235",8235,"awake3",16,"/media/andrey/My Passport/GIN/Anesthesia_CA1/Anesthesia/calcium_imaging_transition_state/non-concatenated/","20201029_GCaMP6f_8235_awake/",4,15028,{"$f":"I98+J98","v":23318},"0, 5000","0, 7000",25]
[98,"TS_C_AWAKE_CTRL_8235",8235,"awake4",16,"/media/andrey/My Passport/GIN/Anesthesia_CA1/Anesthesia/calcium_imaging_transition_state/non-concatenated/","20201029_GCaMP6f_8235_awake/",5,19743,{"$f":"I99+J99","v":38346},"0, 5000","0, 19000",25]
[99,"TS_C_AWAKE_CTRL_8235",8235,"awake5",16,"/media/andrey/My Passport/GIN/Anesthesia_CA1/Anesthesia/calcium_imaging_transition_state/non-concatenated/","20201029_GCaMP6f_8235_awake/",6,10852,{"$f":"I100+J100","v":58089},"0, 5000","0, 10000",25]
[100,"TS_C_AWAKE_CTRL_8235",8235,"awake6",16,"/media/andrey/My Passport/GIN/Anesthesia_CA1/Anesthesia/calcium_imaging_transition_state/non-concatenated/","20201029_GCaMP6f_8235_awake/",7,7663,{"$f":"I101+J101","v":68941},"0, 5000","0, 7000",25]
[101,"TS_C_AWAKE_CTRL_8235",8235,"awake7",16,"/media/andrey/My Passport/GIN/Anesthesia_CA1/Anesthesia/calcium_imaging_transition_state/non-concatenated/","20201029_GCaMP6f_8235_awake/",8,9406,{"$f":"I102+J102","v":76604},"0, 5000","0, 9400",25]
[102,"TS_C_ISO_F0","F0","awake",16,"/media/andrey/My Passport/GIN/Anesthesia_CA1/Anesthesia/calcium_imaging_transition_state/non-concatenated/","20200504_GCaMP6f_mouse#F0_iso_2/",2,18000,0,"8000, 13000","4500, 18000",12]
[103,"TS_C_ISO_F0","F0","iso",16,"/media/andrey/My Passport/GIN/Anesthesia_CA1/Anesthesia/calcium_imaging_transition_state/non-concatenated/","20200504_GCaMP6f_mouse#F0_iso_2/",3,18000,{"$f":"I104+J104","v":18000},"8000, 13000","0,18000",12]
[104,"TS_C_ISO_F0","F0","rec30",16,"/media/andrey/My Passport/GIN/Anesthesia_CA1/Anesthesia/calcium_imaging_transition_state/non-concatenated/","20200504_GCaMP6f_mouse#F0_iso_2/",4,13125,{"$f":"I105+J105","v":36000},"5000, 10000","3200, 12000",12]
[105,"TS_C_ISO_F0","F0","rec60",16,"/media/andrey/My Passport/GIN/Anesthesia_CA1/Anesthesia/calcium_imaging_transition_state/non-concatenated/","20200504_GCaMP6f_mouse#F0_iso_2/",5,11097,{"$f":"I106+J106","v":49125},"5000, 10000","0, 11000",12]
[106,"TS_C_ISO_F0","F0","rec120",16,"/media/andrey/My Passport/GIN/Anesthesia_CA1/Anesthesia/calcium_imaging_transition_state/non-concatenated/","20200504_GCaMP6f_mouse#F0_iso_2/",6,18000,{"$f":"I107+J107","v":60222},"10000, 15000","0, 18000",12]
[107,"TS_C_ISO_F0","F0","rec180",16,"/media/andrey/My Passport/GIN/Anesthesia_CA1/Anesthesia/calcium_imaging_transition_state/non-concatenated/","20200504_GCaMP6f_mouse#F0_iso_2/",7,10327,{"$f":"I108+J108","v":78222},"2000, 7000","0, 10000",12]
[108,"TS_C_ISO_F0","F0","rec240",16,"/media/andrey/My Passport/GIN/Anesthesia_CA1/Anesthesia/calcium_imaging_transition_state/non-concatenated/","20200504_GCaMP6f_mouse#F0_iso_2/",8,10455,{"$f":"I109+J109","v":88549},"2000, 7000","0, 10000",12]
[109,"TS_C_ISO_F0","F0","rec300",16,"/media/andrey/My Passport/GIN/Anesthesia_CA1/Anesthesia/calcium_imaging_transition_state/non-concatenated/","20200504_GCaMP6f_mouse#F0_iso_2/",9,11576,{"$f":"I110+J110","v":99004},"4000, 9000","0, 11000",12]
[110,"TS_C_ISO_F0","F0","rec360",16,"/media/andrey/My Passport/GIN/Anesthesia_CA1/Anesthesia/calcium_imaging_transition_state/non-concatenated/","20200504_GCaMP6f_mouse#F0_iso_2/",10,15557,{"$f":"I111+J111","v":110580},"8000, 13000","1000, 15000",12]
[111,"TS_C_KETA_F0","F0","awake",16,"/media/andrey/My Passport/GIN/Anesthesia_CA1/Anesthesia/calcium_imaging_transition_state/non-concatenated/","20200416_GCaMP6f_mouse#F0_keta/",3,8861,{"$f":"7696+6616","v":14312},"50, 5050","50, 8500",11,"Recording with pupil; WY_00001.tif (7696 frames) and WY_00002.tif (6616 frames) are supposed to be not good. I skip it adding 14312 frames in starting position"]
[112,"TS_C_KETA_F0","F0","keta",16,"/media/andrey/My Passport/GIN/Anesthesia_CA1/Anesthesia/calcium_imaging_transition_state/non-concatenated/","20200416_GCaMP6f_mouse#F0_keta/",4,18000,{"$f":"I113+J113","v":23173},"7500,12500","7500, 17500",11]
[113,"TS_C_KETA_F0","F0","keta30",16,"/media/andrey/My Passport/GIN/Anesthesia_CA1/Anesthesia/calcium_imaging_transition_state/non-concatenated/","20200416_GCaMP6f_mouse#F0_keta/",5,8573,{"$f":"I114+J114","v":41173},"3000, 8000","0, 9000",11,"Shrinked from (0,5000) to (50,4950)"]
[114,"TS_C_KETA_F0","F0","keta60",16,"/media/andrey/My Passport/GIN/Anesthesia_CA1/Anesthesia/calcium_imaging_transition_state/non-concatenated/","20200416_GCaMP6f_mouse#F0_keta/",6,11200,{"$f":"I115+J115","v":49746},"2000, 7000","200, 10000",11,"Shrinked from (200,5200) to (350,5200)"]
[115,"TS_C_KETA_F0","F0","keta120",16,"/media/andrey/My Passport/GIN/Anesthesia_CA1/Anesthesia/calcium_imaging_transition_state/non-concatenated/","20200416_GCaMP6f_mouse#F0_keta/",7,12043,{"$f":"I116+J116","v":60946},"1000,6000","1000, 70000",11,"8000-12000"]
[116,"TS_C_KETA_F0","F0","keta180",16,"/media/andrey/My Passport/GIN/Anesthesia_CA1/Anesthesia/calcium_imaging_transition_state/non-concatenated/","20200416_GCaMP6f_mouse#F0_keta/",8,12300,{"$f":"I117+J117","v":72989},"4000,9000","4000, 12000",11]
[117,"TS_C_KETA_F0","F0","keta240",16,"/media/andrey/My Passport/GIN/Anesthesia_CA1/Anesthesia/calcium_imaging_transition_state/non-concatenated/","20200416_GCaMP6f_mouse#F0_keta/",9,18000,{"$f":"I118+J118","v":85289},"0,17500","0, 17500",11]
[118,"TS_C_KETA_F0","F0","keta300",16,"/media/andrey/My Passport/GIN/Anesthesia_CA1/Anesthesia/calcium_imaging_transition_state/non-concatenated/","20200416_GCaMP6f_mouse#F0_keta/",10,15224,{"$f":"I119+J119","v":103289},"0,5000","0, 9000",11,"10000,15000"]
[119,"TS_C_KETA_F0","F0","keta360",16,"/media/andrey/My Passport/GIN/Anesthesia_CA1/Anesthesia/calcium_imaging_transition_state/non-concatenated/","20200416_GCaMP6f_mouse#F0_keta/",11,18000,{"$f":"I120+J120","v":118513},"5000,10000","5000, 17000",11]
[120,"TS_C_MMF_F0","F0","awake",16,"/media/andrey/My Passport/GIN/Anesthesia_CA1/Anesthesia/calcium_imaging_transition_state/non-concatenated/","20200427_GCaMP6f_mouse#F0_MMF/",3,10304,0,"5000, 10000","3600, 10000",11]
[121,"TS_C_MMF_F0","F0","mmf",16,"/media/andrey/My Passport/GIN/Anesthesia_CA1/Anesthesia/calcium_imaging_transition_state/non-concatenated/","20200427_GCaMP6f_mouse#F0_MMF/",4,18000,{"$f":"I122+J122","v":10304},"5000, 10000","0, 18000",11]
[122,"TS_C_MMF_F0","F0","post30",16,"/media/andrey/My Passport/GIN/Anesthesia_CA1/Anesthesia/calcium_imaging_transition_state/non-concatenated/","20200427_GCaMP6f_mouse#F0_MMF/",5,10097,{"$f":"I123+J123","v":28304},"5000, 10000","0, 10097",11]
[123,"TS_C_MMF_F0","F0","post60",16,"/media/andrey/My Passport/GIN/Anesthesia_CA1/Anesthesia/calcium_imaging_transition_state/non-concatenated/","20200427_GCaMP6f_mouse#F0_MMF/",6,12014,{"$f":"I124+J124","v":38401},"500, 5500","0, 12014",11]
[124,"TS_C_MMF_F0","F0","post120",16,"/media/andrey/My Passport/GIN/Anesthesia_CA1/Anesthesia/calcium_imaging_transition_state/non-concatenated/","20200427_GCaMP6f_mouse#F0_MMF/",7,9912,{"$f":"I125+J125","v":50415},"4000, 9000","0, 9800",11]
[125,"TS_C_MMF_F0","F0","post180",16,"/media/andrey/My Passport/GIN/Anesthesia_CA1/Anesthesia/calcium_imaging_transition_state/non-concatenated/","20200427_GCaMP6f_mouse#F0_MMF/",8,9408,{"$f":"I126+J126","v":60327},"25, 4500","0, 8900",11]
[126,"TS_C_MMF_F0","F0","post240",16,"/media/andrey/My Passport/GIN/Anesthesia_CA1/Anesthesia/calcium_imaging_transition_state/non-concatenated/","20200427_GCaMP6f_mouse#F0_MMF/",9,16408,{"$f":"I127+J127","v":69735},"11000, 16000","7000, 16000",11,"Noisy"]
[127,"TS_C_MMF_F0","F0","post300",16,"/media/andrey/My Passport/GIN/Anesthesia_CA1/Anesthesia/calcium_imaging_transition_state/non-concatenated/","20200427_GCaMP6f_mouse#F0_MMF/",10,6111,{"$f":"I128+J128","v":86143},"250, 4750","0, 5700",11]
[128,"TS_C_MMF_F0","F0","post360",16,"/media/andrey/My Passport/GIN/Anesthesia_CA1/Anesthesia/calcium_imaging_transition_state/non-concatenated/","20200427_GCaMP6f_mouse#F0_MMF/",11,9268,{"$f":"I129+J129","v":92254},"1000, 6000","0, 9000",11]
[129,"TS_C_KETA_M3","M3","awake",16,"/media/andrey/My Passport/GIN/Anesthesia_CA1/Anesthesia/calcium_imaging_transition_state/non-concatenated/","20200511_GCaMP6f_mouse#M3_keta/",2,9591,0,"3000, 8000","3000, 9000",60]
[130,"TS_C_KETA_M3","M3","keta",16,"/media/andrey/My Passport/GIN/Anesthesia_CA1/Anesthesia/calcium_imaging_transition_state/non-concatenated/","20200511_GCaMP6f_mouse#M3_keta/",3,18000,{"$f":"I131+J131","v":9591},"250, 5250","0, 18000",60]
[131,"TS_C_KETA_M3","M3","keta30",16,"/media/andrey/My Passport/GIN/Anesthesia_CA1/Anesthesia/calcium_imaging_transition_state/non-concatenated/","20200511_GCaMP6f_mouse#M3_keta/",4,8538,{"$f":"I132+J132","v":27591},"1200, 6200","1200, 7800",60]
[132,"TS_C_KETA_M3","M3","keta60",16,"/media/andrey/My Passport/GIN/Anesthesia_CA1/Anesthesia/calcium_imaging_transition_state/non-concatenated/","20200511_GCaMP6f_mouse#M3_keta/",5,15846,{"$f":"I133+J133","v":36129},"9000, 14000","9000, 15000",60,"small artefacts (peaks upside down)"]
[133,"TS_C_KETA_M3","M3","keta120",16,"/media/andrey/My Passport/GIN/Anesthesia_CA1/Anesthesia/calcium_imaging_transition_state/non-concatenated/","20200511_GCaMP6f_mouse#M3_keta/",6,10807,{"$f":"I134+J134","v":51975},"5500, 10500","5500, 10600",60,"small artefacts (peaks upside down)"]
[134,"TS_C_KETA_M3","M3","keta180",16,"/media/andrey/My Passport/GIN/Anesthesia_CA1/Anesthesia/calcium_imaging_transition_state/non-concatenated/","20200511_GCaMP6f_mouse#M3_keta/",7,16773,{"$f":"I135+J135","v":62782},"5000, 10000","5000, 16000",60]
[135,"TS_C_KETA_M3","M3","keta240",16,"/media/andrey/My Passport/GIN/Anesthesia_CA1/Anesthesia/calcium_imaging_transition_state/non-concatenated/","20200511_GCaMP6f_mouse#M3_keta/",8,10023,{"$f":"I136+J136","v":79555},"1000, 6000","1000, 10000",60]
[136,"TS_C_KETA_M3","M3","keta300",16,"/media/andrey/My Passport/GIN/Anesthesia_CA1/Anesthesia/calcium_imaging_transition_state/non-concatenated/","20200511_GCaMP6f_mouse#M3_keta/",9,10764,{"$f":"I137+J137","v":89578},"1000, 6000","1000, 10000",60]
[137,"TS_C_KETA_M3","M3","keta360",16,"/media/andrey/My Passport/GIN/Anesthesia_CA1/Anesthesia/calcium_imaging_transition_state/non-concatenated/","20200511_GCaMP6f_mouse#M3_keta/",10,11720,{"$f":"I138+J138","v":100342},"0, 5000","0, 10000",60]
[138,"TS_C_ISO_M0","M0","awake",16,"/media/andrey/My Passport/GIN/Anesthesia_CA1/Anesthesia/calcium_imaging_transition_state/non-concatenated/","20200425_GCaMP6f_mouse#M0_iso/",2,7101,0,"0, 5000","0, 6900",89,"Noise from the UV LED (can be subsequently removed with extraction and classification algorithm)"]
[139,"TS_C_ISO_M0","M0","iso",16,"/media/andrey/My Passport/GIN/Anesthesia_CA1/Anesthesia/calcium_imaging_transition_state/non-concatenated/","20200425_GCaMP6f_mouse#M0_iso/",3,18000,{"$f":"I140+J140","v":7101},"0, 5000","0, 18000",89,"same"]
[140,"TS_C_ISO_M0","M0","rec30",16,"/media/andrey/My Passport/GIN/Anesthesia_CA1/Anesthesia/calcium_imaging_transition_state/non-concatenated/","20200425_GCaMP6f_mouse#M0_iso/",4,8384,{"$f":"I141+J141","v":25101},"0, 5000","0, 8384",89,"same"]
[141,"TS_C_ISO_M0","M0","rec60",16,"/media/andrey/My Passport/GIN/Anesthesia_CA1/Anesthesia/calcium_imaging_transition_state/non-concatenated/","20200425_GCaMP6f_mouse#M0_iso/",5,12046,{"$f":"I142+J142","v":33485},"3000, 8000","0,12000",89,"same"]
[142,"TS_C_ISO_M0","M0","rec120",16,"/media/andrey/My Passport/GIN/Anesthesia_CA1/Anesthesia/calcium_imaging_transition_state/non-concatenated/","20200425_GCaMP6f_mouse#M0_iso/",6,8787,{"$f":"I143+J143","v":45531},"2000, 7000","0, 8700",89,"same"]
[143,"TS_C_ISO_M0","M0","rec180",16,"/media/andrey/My Passport/GIN/Anesthesia_CA1/Anesthesia/calcium_imaging_transition_state/non-concatenated/","20200425_GCaMP6f_mouse#M0_iso/",7,5702,{"$f":"I144+J144","v":54318},"0, 5000","0, 5400",89,"same"]
[144,"TS_C_ISO_M0","M0","rec240",16,"/media/andrey/My Passport/GIN/Anesthesia_CA1/Anesthesia/calcium_imaging_transition_state/non-concatenated/","20200425_GCaMP6f_mouse#M0_iso/",8,12847,{"$f":"I145+J145","v":60020},"5000, 10000","5000, 12000",89,"same"]
[145,"TS_C_ISO_M0","M0","rec300",16,"/media/andrey/My Passport/GIN/Anesthesia_CA1/Anesthesia/calcium_imaging_transition_state/non-concatenated/","20200425_GCaMP6f_mouse#M0_iso/",9,8213,{"$f":"I146+J146","v":72867},"0, 5000","0, 7900",89,"same"]
[146,"TS_C_ISO_M0","M0","rec360",16,"/media/andrey/My Passport/GIN/Anesthesia_CA1/Anesthesia/calcium_imaging_transition_state/non-concatenated/","20200425_GCaMP6f_mouse#M0_iso/",10,8964,{"$f":"I147+J147","v":81080},"0, 5000","0, 8800",89,"same"]
[147,"TS_C_MMF_M0","M0","awake",16,"/media/andrey/My Passport/GIN/Anesthesia_CA1/Anesthesia/calcium_imaging_transition_state/non-concatenated/","20200505_GCaMP6f_mouse#M0_MMF/",2,13428,0,"4000, 9000","4000, 13000",60,"Threshold is maybe too high (no peaks at mmf condition will be detected)"]
[148,"TS_C_MMF_M0","M0","mmf",16,"/media/andrey/My Passport/GIN/Anesthesia_CA1/Anesthesia/calcium_imaging_transition_state/non-concatenated/","20200505_GCaMP6f_mouse#M0_MMF/",3,18000,{"$f":"I149+J149","v":13428},"0, 5000","0, 18000",60]
[149,"TS_C_MMF_M0","M0","post30",16,"/media/andrey/My Passport/GIN/Anesthesia_CA1/Anesthesia/calcium_imaging_transition_state/non-concatenated/","20200505_GCaMP6f_mouse#M0_MMF/",4,18000,{"$f":"I150+J150","v":31428},"0, 5000","0, 18000",60]
[150,"TS_C_MMF_M0","M0","post60",16,"/media/andrey/My Passport/GIN/Anesthesia_CA1/Anesthesia/calcium_imaging_transition_state/non-concatenated/","20200505_GCaMP6f_mouse#M0_MMF/",5,17432,{"$f":"I151+J151","v":49428},"0, 5000","0, 14000",60]
[151,"TS_C_MMF_M0","M0","post120",16,"/media/andrey/My Passport/GIN/Anesthesia_CA1/Anesthesia/calcium_imaging_transition_state/non-concatenated/","20200505_GCaMP6f_mouse#M0_MMF/",6,9210,{"$f":"I152+J152","v":66860},"0, 5000","0, 9210",89]
[152,"TS_C_MMF_M0","M0","post180",16,"/media/andrey/My Passport/GIN/Anesthesia_CA1/Anesthesia/calcium_imaging_transition_state/non-concatenated/","20200505_GCaMP6f_mouse#M0_MMF/",7,17005,{"$f":"I153+J153","v":76070},"8000, 13000","8000, 16900",89]
[153,"TS_C_MMF_M0","M0","post240",16,"/media/andrey/My Passport/GIN/Anesthesia_CA1/Anesthesia/calcium_imaging_transition_state/non-concatenated/","20200505_GCaMP6f_mouse#M0_MMF/",8,18000,{"$f":"I154+J154","v":93075},"8700, 13700","8700, 18000",89]
[154,"TS_C_MMF_M0","M0","post300",16,"/media/andrey/My Passport/GIN/Anesthesia_CA1/Anesthesia/calcium_imaging_transition_state/non-concatenated/","20200505_GCaMP6f_mouse#M0_MMF/",9,7217,{"$f":"I155+J155","v":111075},"1000, 6000","1000, 7000",89]
[155,"TS_C_MMF_M0","M0","post360",16,"/media/andrey/My Passport/GIN/Anesthesia_CA1/Anesthesia/calcium_imaging_transition_state/non-concatenated/","20200505_GCaMP6f_mouse#M0_MMF/",10,8205,{"$f":"I156+J156","v":118292},"0, 6000","0, 8000",89]
[156,"TS_C_AWAKE_CTRL_F0","F0","awake1",16,"/media/andrey/My Passport/GIN/Anesthesia_CA1/Anesthesia/calcium_imaging_transition_state/non-concatenated/","20200609_GCaMP6f_mouse#F0_ctrl_8h/",2,18000,0,"3000, 8000","0,18000",12]
[157,"TS_C_AWAKE_CTRL_F0","F0","awake2",16,"/media/andrey/My Passport/GIN/Anesthesia_CA1/Anesthesia/calcium_imaging_transition_state/non-concatenated/","20200609_GCaMP6f_mouse#F0_ctrl_8h/",3,18000,{"$f":"I158+J158","v":18000},"10000, 15000","8000, 15000",12]
[158,"TS_C_AWAKE_CTRL_F0","F0","awake3",16,"/media/andrey/My Passport/GIN/Anesthesia_CA1/Anesthesia/calcium_imaging_transition_state/non-concatenated/","20200609_GCaMP6f_mouse#F0_ctrl_8h/",4,18000,{"$f":"I159+J159","v":36000},"4000, 9000","3300, 10000",12]
[159,"TS_C_AWAKE_CTRL_F0","F0","awake4",16,"/media/andrey/My Passport/GIN/Anesthesia_CA1/Anesthesia/calcium_imaging_transition_state/non-concatenated/","20200609_GCaMP6f_mouse#F0_ctrl_8h/",5,14578,{"$f":"I160+J160","v":54000},"4000, 9000","4000, 14000",12]
[160,"TS_C_AWAKE_CTRL_F0","F0","awake5",16,"/media/andrey/My Passport/GIN/Anesthesia_CA1/Anesthesia/calcium_imaging_transition_state/non-concatenated/","20200609_GCaMP6f_mouse#F0_ctrl_8h/",6,9043,{"$f":"I161+J161","v":68578},"0, 5000","0, 8900",12]
[161,"TS_C_AWAKE_CTRL_F0","F0","awake6",16,"/media/andrey/My Passport/GIN/Anesthesia_CA1/Anesthesia/calcium_imaging_transition_state/non-concatenated/","20200609_GCaMP6f_mouse#F0_ctrl_8h/",7,14019,{"$f":"I162+J162","v":77621},"0, 5000","0, 14000",12]
[162,"TS_C_AWAKE_CTRL_F0","F0","awake7",16,"/media/andrey/My Passport/GIN/Anesthesia_CA1/Anesthesia/calcium_imaging_transition_state/non-concatenated/","20200609_GCaMP6f_mouse#F0_ctrl_8h/",8,8919,{"$f":"I163+J163","v":91640},"0, 5000","0, 8000",12]
[163,"TS_C_AWAKE_CTRL_F0","F0","awake8",16,"/media/andrey/My Passport/GIN/Anesthesia_CA1/Anesthesia/calcium_imaging_transition_state/non-concatenated/","20200609_GCaMP6f_mouse#F0_ctrl_8h/",9,10312,{"$f":"I164+J164","v":100559},"0, 5000","0, 10000",12]
[164,"TS_C_AWAKE_CTRL_F1","F1","awake1",16,"/media/andrey/My Passport/GIN/Anesthesia_CA1/Anesthesia/calcium_imaging_transition_state/non-concatenated/","20200616_GCaMP6f_mouse#F1_ctrl_8h/",2,18000,0,"0,18000","8500, 18000",132,"First 18000 frames are recorded with 130 mW. Recordings with 90 and 110 are also availible (18001-23061 and 23062-29276)"]
[165,"TS_C_AWAKE_CTRL_F1","F1","awake2",16,"/media/andrey/My Passport/GIN/Anesthesia_CA1/Anesthesia/calcium_imaging_transition_state/non-concatenated/","20200616_GCaMP6f_mouse#F1_ctrl_8h/",5,10611,{"$f":"I166+J166","v":18000},"0,10611","0, 10000",132]
[166,"TS_C_AWAKE_CTRL_F1","F1","awake3",16,"/media/andrey/My Passport/GIN/Anesthesia_CA1/Anesthesia/calcium_imaging_transition_state/non-concatenated/","20200616_GCaMP6f_mouse#F1_ctrl_8h/",6,8542,{"$f":"I167+J167","v":28611},"0,8542","0, 8000",132]
[167,"TS_C_AWAKE_CTRL_F1","F1","awake4",16,"/media/andrey/My Passport/GIN/Anesthesia_CA1/Anesthesia/calcium_imaging_transition_state/non-concatenated/","20200616_GCaMP6f_mouse#F1_ctrl_8h/",7,12111,{"$f":"I168+J168","v":37153},"0,12111","3000, 11000",132]
[168,"TS_C_AWAKE_CTRL_F1","F1","awake5",16,"/media/andrey/My Passport/GIN/Anesthesia_CA1/Anesthesia/calcium_imaging_transition_state/non-concatenated/","20200616_GCaMP6f_mouse#F1_ctrl_8h/",8,14524,{"$f":"I169+J169","v":49264},"0,14524","0, 14000",132]
[169,"TS_C_AWAKE_CTRL_F1","F1","awake6",16,"/media/andrey/My Passport/GIN/Anesthesia_CA1/Anesthesia/calcium_imaging_transition_state/non-concatenated/","20200616_GCaMP6f_mouse#F1_ctrl_8h/",9,10866,{"$f":"I170+J170","v":63788},"0,10866","0, 10000",132]
[170,"TS_C_AWAKE_CTRL_F1","F1","awake7",16,"/media/andrey/My Passport/GIN/Anesthesia_CA1/Anesthesia/calcium_imaging_transition_state/non-concatenated/","20200616_GCaMP6f_mouse#F1_ctrl_8h/",10,10956,{"$f":"I171+J171","v":74654},"0,10956","0, 10000",132]
[171,"TS_C_AWAKE_CTRL_F1","F1","awake8",16,"/media/andrey/My Passport/GIN/Anesthesia_CA1/Anesthesia/calcium_imaging_transition_state/non-concatenated/","20200616_GCaMP6f_mouse#F1_ctrl_8h/",11,10812,{"$f":"I172+J172","v":85610},"0,10812","0, 10000",132]
[172,"TS_C_ISO_F1","F1","awake",16,"/media/andrey/My Passport/GIN/Anesthesia_CA1/Anesthesia/calcium_imaging_transition_state/non-concatenated/","20200418_GCaMP6f_mouse#F1_iso/",2,8214,0,"-","0, 8000",89]
[173,"TS_C_ISO_F1","F1","iso",16,"/media/andrey/My Passport/GIN/Anesthesia_CA1/Anesthesia/calcium_imaging_transition_state/non-concatenated/","20200418_GCaMP6f_mouse#F1_iso/",3,18000,{"$f":"I174+J174","v":8214},"-","0, 18000",89]
[174,"TS_C_ISO_F1","F1","rec30",16,"/media/andrey/My Passport/GIN/Anesthesia_CA1/Anesthesia/calcium_imaging_transition_state/non-concatenated/","20200418_GCaMP6f_mouse#F1_iso/",4,8235,{"$f":"I175+J175","v":26214},"-","0,8235",89,"Significant motion during this recording"]
[175,"TS_C_ISO_F1","F1","rec60",16,"/media/andrey/My Passport/GIN/Anesthesia_CA1/Anesthesia/calcium_imaging_transition_state/non-concatenated/","20200418_GCaMP6f_mouse#F1_iso/",5,18000,{"$f":"I176+J176","v":34449},"-","0, 18000",89]
[176,"TS_C_ISO_F1","F1","rec120",16,"/media/andrey/My Passport/GIN/Anesthesia_CA1/Anesthesia/calcium_imaging_transition_state/non-concatenated/","20200418_GCaMP6f_mouse#F1_iso/",6,16022,{"$f":"I177+J177","v":52449},"-","0, 16022",89]
[177,"TS_C_ISO_F1","F1","rec180",16,"/media/andrey/My Passport/GIN/Anesthesia_CA1/Anesthesia/calcium_imaging_transition_state/non-concatenated/","20200418_GCaMP6f_mouse#F1_iso/",7,11790,{"$f":"I178+J178","v":68471},"-","0, 11790",89]
[178,"TS_C_ISO_F1","F1","rec240",16,"/media/andrey/My Passport/GIN/Anesthesia_CA1/Anesthesia/calcium_imaging_transition_state/non-concatenated/","20200418_GCaMP6f_mouse#F1_iso/",8,15405,{"$f":"I179+J179","v":80261},"-","0, 15405",89]
[179,"TS_C_ISO_F1","F1","rec300",16,"/media/andrey/My Passport/GIN/Anesthesia_CA1/Anesthesia/calcium_imaging_transition_state/non-concatenated/","20200418_GCaMP6f_mouse#F1_iso/",9,17590,{"$f":"I180+J180","v":95666},"-","0, 17590",89]
[180,"TS_C_ISO_F1","F1","rec360",16,"/media/andrey/My Passport/GIN/Anesthesia_CA1/Anesthesia/calcium_imaging_transition_state/non-concatenated/","20200418_GCaMP6f_mouse#F1_iso/",10,16450,{"$f":"I181+J181","v":113256},"-","0, 16450",89]
[181,"TS_C_KETA_F1","F1","awake",16,"/media/andrey/My Passport/GIN/Anesthesia_CA1/Anesthesia/calcium_imaging_transition_state/non-concatenated/","20200405_GCaMP6f_mouse#F1_keta/",2,9898,0,"-","0, 9898",89]
[182,"TS_C_KETA_F1","F1","keta",16,"/media/andrey/My Passport/GIN/Anesthesia_CA1/Anesthesia/calcium_imaging_transition_state/non-concatenated/","20200405_GCaMP6f_mouse#F1_keta/",3,18000,{"$f":"I183+J183","v":9898},"-","0, 18000",89]
[183,"TS_C_KETA_F1","F1","keta30",16,"/media/andrey/My Passport/GIN/Anesthesia_CA1/Anesthesia/calcium_imaging_transition_state/non-concatenated/","20200405_GCaMP6f_mouse#F1_keta/",4,18000,{"$f":"I184+J184","v":27898},"-","0, 18000",89]
[184,"TS_C_KETA_F1","F1","keta60",16,"/media/andrey/My Passport/GIN/Anesthesia_CA1/Anesthesia/calcium_imaging_transition_state/non-concatenated/","20200405_GCaMP6f_mouse#F1_keta/",5,18000,{"$f":"I185+J185","v":45898},"-","0, 18000",89]
[185,"TS_C_KETA_F1","F1","keta120",16,"/media/andrey/My Passport/GIN/Anesthesia_CA1/Anesthesia/calcium_imaging_transition_state/non-concatenated/","20200405_GCaMP6f_mouse#F1_keta/",6,9112,{"$f":"I186+J186","v":63898},"-","0, 9112",89]
[186,"TS_C_KETA_F1","F1","keta180",16,"/media/andrey/My Passport/GIN/Anesthesia_CA1/Anesthesia/calcium_imaging_transition_state/non-concatenated/","20200405_GCaMP6f_mouse#F1_keta/",7,17295,{"$f":"I187+J187","v":73010},"-","0, 17295",89]
[187,"TS_C_KETA_F1","F1","keta240",16,"/media/andrey/My Passport/GIN/Anesthesia_CA1/Anesthesia/calcium_imaging_transition_state/non-concatenated/","20200405_GCaMP6f_mouse#F1_keta/",8,10307,{"$f":"I188+J188","v":90305},"-","0, 10307",89]
[188,"TS_C_KETA_F1","F1","keta300",16,"/media/andrey/My Passport/GIN/Anesthesia_CA1/Anesthesia/calcium_imaging_transition_state/non-concatenated/","20200405_GCaMP6f_mouse#F1_keta/",9,29202,{"$f":"I189+J189","v":100612},"-","18000, 29202",89]
[189,"TS_C_KETA_F1","F1","keta360",16,"/media/andrey/My Passport/GIN/Anesthesia_CA1/Anesthesia/calcium_imaging_transition_state/non-concatenated/","20200405_GCaMP6f_mouse#F1_keta/",10,10110,{"$f":"I190+J190","v":129814},"-","0, 10110",89]
[190,"TS_C_MMF_F1","F1","awake",16,"/media/andrey/My Passport/GIN/Anesthesia_CA1/Anesthesia/calcium_imaging_transition_state/non-concatenated/","20200412_GCaMP6f_mouse#F1_MMF/",2,8437,0,"-","0, 8437",89]
[191,"TS_C_MMF_F1","F1","mmf",16,"/media/andrey/My Passport/GIN/Anesthesia_CA1/Anesthesia/calcium_imaging_transition_state/non-concatenated/","20200412_GCaMP6f_mouse#F1_MMF/",3,18000,{"$f":"I192+J192","v":8437},"-","0, 18000",89]
[192,"TS_C_MMF_F1","F1","post30",16,"/media/andrey/My Passport/GIN/Anesthesia_CA1/Anesthesia/calcium_imaging_transition_state/non-concatenated/","20200412_GCaMP6f_mouse#F1_MMF/",4,18000,{"$f":"I193+J193","v":26437},"-","0, 18000",89]
[193,"TS_C_MMF_F1","F1","post60",16,"/media/andrey/My Passport/GIN/Anesthesia_CA1/Anesthesia/calcium_imaging_transition_state/non-concatenated/","20200412_GCaMP6f_mouse#F1_MMF/",5,18000,{"$f":"I194+J194","v":44437},"-","0, 18000",89]
[194,"TS_C_MMF_F1","F1","post120",16,"/media/andrey/My Passport/GIN/Anesthesia_CA1/Anesthesia/calcium_imaging_transition_state/non-concatenated/","20200412_GCaMP6f_mouse#F1_MMF/",6,16374,{"$f":"I195+J195","v":62437},"-","0, 16374",89]
[195,"TS_C_MMF_F1","F1","post180",16,"/media/andrey/My Passport/GIN/Anesthesia_CA1/Anesthesia/calcium_imaging_transition_state/non-concatenated/","20200412_GCaMP6f_mouse#F1_MMF/",7,12255,{"$f":"I196+J196","v":78811},"-","0, 12255",89]
[196,"TS_C_MMF_F1","F1","post240",16,"/media/andrey/My Passport/GIN/Anesthesia_CA1/Anesthesia/calcium_imaging_transition_state/non-concatenated/","20200412_GCaMP6f_mouse#F1_MMF/",8,18000,{"$f":"I197+J197","v":91066},"-","0, 18000",89]
[197,"TS_C_MMF_F1","F1","post300",16,"/media/andrey/My Passport/GIN/Anesthesia_CA1/Anesthesia/calcium_imaging_transition_state/non-concatenated/","20200412_GCaMP6f_mouse#F1_MMF/",9,15623,{"$f":"I198+J198","v":109066},"-","0, 15623",89]
[198,"TS_C_MMF_F1","F1","post360",16,"/media/andrey/My Passport/GIN/Anesthesia_CA1/Anesthesia/calcium_imaging_transition_state/non-concatenated/","20200412_GCaMP6f_mouse#F1_MMF/",10,16259,{"$f":"I199+J199","v":124689},"-","0, 16259",89]